fUSD/lending_fUSD_20260614
["ID","MTS","AMOUNT","RATE_DAILY","PERIOD"]
[424990180,1781380246000,-150.0,0.000159,2]
[424990133,1781380246000,-150.0,0.00015626,2]
[424990134,1781380246000,-150.0,0.00015626,2]
[424990135,1781380246000,-150.0,0.00015626,2]
[424990136,1781380246000,-192.50213938,0.00015626,2]
[424990137,1781380246000,-185.69,0.00015658,2]
[424990141,1781380246000,-907.13584239,0.00015876,2]
[424990140,1781380246000,-166.66,0.0001572,2]
[424990138,1781380246000,-172.98263688,0.00015661,2]
[424990139,1781380246000,-169.15355312,0.00015661,2]
[424990143,1781380246000,-250.0,0.00015884,2]
[424990142,1781380246000,-500.0,0.00015884,2]
[424990132,1781380246000,-150.0,0.0001552,2]
[424990170,1781380246000,-151.0,0.000159,2]
[424990161,1781380246000,-319.0,0.000159,2]
[424990168,1781380246000,-151.0,0.000159,2]
[424990217,1781380246000,-151.0,0.000159,2]
[424990220,1781380246000,-151.0,0.000159,2]
[424990223,1781380246000,-150.0,0.000159,2]
[424990221,1781380246000,-152.0,0.000159,2]
[424990226,1781380246000,-150.0,0.000159,2]
[424990225,1781380246000,-151.0,0.000159,2]
[424990230,1781380246000,-151.0,0.000159,2]
[424990232,1781380246000,-151.0,0.000159,2]
[424990229,1781380246000,-150.0,0.000159,2]
[424990228,1781380246000,-150.0,0.000159,2]
[424990172,1781380246000,-151.0,0.000159,2]
[424990233,1781380246000,-200.0,0.000159,2]
[424990235,1781380246000,-200.0,0.000159,2]
[424990234,1781380246000,-1360.7820639,0.000159,2]
[424990231,1781380246000,-150.0,0.000159,2]
[424990236,1781380246000,-300.0,0.00016,2]
[424990240,1781380246000,-200.0,0.00016059,2]
[424990237,1781380246000,-166.66,0.00016045,2]
[424990239,1781380246000,-200.0,0.00016059,2]
[424990238,1781380246000,-150.0,0.00016052,2]
[424990241,1781380246000,-194.44,0.00016067,2]
[424990242,1781380246000,-786.24,0.00016116,2]
[424990244,1781380246000,-1343.87507472,0.00016116,2]
[424990216,1781380246000,-151.0,0.000159,2]
[424990219,1781380246000,-150.0,0.000159,2]
[424990227,1781380246000,-150.0,0.000159,2]
[424990224,1781380246000,-151.0,0.000159,2]
[424990204,1781380246000,-150.0,0.000159,2]
[424990190,1781380246000,-151.0,0.000159,2]
[424990191,1781380246000,-151.0,0.000159,2]
[424990194,1781380246000,-151.0,0.000159,2]
[424990185,1781380246000,-151.0,0.000159,2]
[424990196,1781380246000,-152.0,0.000159,2]
[424990203,1781380246000,-150.0,0.000159,2]
[424990199,1781380246000,-152.0,0.000159,2]
[424990201,1781380246000,-151.0,0.000159,2]
[424990208,1781380246000,-150.0,0.000159,2]
[424990222,1781380246000,-151.0,0.000159,2]
[424990187,1781380246000,-152.0,0.000159,2]
[424990209,1781380246000,-150.0,0.000159,2]
[424990210,1781380246000,-151.0,0.000159,2]
[424990213,1781380246000,-151.0,0.000159,2]
[424990211,1781380246000,-150.0,0.000159,2]
[424990212,1781380246000,-150.0,0.000159,2]
[424990207,1781380246000,-150.0,0.000159,2]
[424990206,1781380246000,-153.0,0.000159,2]
[424990214,1781380246000,-151.0,0.000159,2]
[424990215,1781380246000,-151.0,0.000159,2]
[424990218,1781380246000,-151.0,0.000159,2]
[424990205,1781380246000,-150.0,0.000159,2]
[424990246,1781380247000,-2645.6682857,0.00016118,2]
[424990245,1781380247000,-2068.33492528,0.00016116,2]
[424990249,1781380247000,-7439.19101839,0.00016218,2]
[424990248,1781380247000,-3066.98666011,0.00016118,2]
[424990247,1781380247000,-3142.15895419,0.00016118,2]
[424990253,1781380248000,-340.4335,0.00016218,2]
[424990284,1781381246000,-200.0,0.00013847,2]
[424990285,1781381246000,-81.2101365,0.00013847,2]
[424990283,1781381246000,-200.0,0.00013847,2]
[424990280,1781381246000,-229.41657676,0.00013655,7]
[424990281,1781381246000,-206.95096553,0.00013751,2]
[424990279,1781381246000,-290.55978743,0.00013387,7]
[424990282,1781381246000,-197.71326568,0.00013769,2]
[424990311,1781381431000,-500.0,0.00013941,2]
[424990309,1781381431000,-500.0,0.00013941,2]
[424990307,1781381431000,-500.0,0.00013941,2]
[424990302,1781381431000,-150.0,0.0001394,2]
[424990304,1781381431000,-500.0,0.00013941,2]
[424990300,1781381431000,-318.7898635,0.00013864,2]
[424990301,1781381431000,-298.03925892,0.00013909,2]
[424990305,1781381431000,-500.0,0.00013941,2]
[424990298,1781381431000,-600.0,0.00013858,2]
[424990299,1781381431000,-300.0,0.00013861,2]
[424990306,1781381431000,-440.38486124,0.00013941,2]
[424990303,1781381431000,-500.0,0.00013941,2]
[424990312,1781381431000,-500.0,0.00013941,2]
[424990324,1781381431000,-500.0,0.00013941,2]
[424990308,1781381431000,-500.0,0.00013941,2]
[424990325,1781381431000,-500.0,0.00013941,2]
[424990322,1781381431000,-500.0,0.00013941,2]
[424990323,1781381431000,-500.0,0.00013941,2]
[424990318,1781381431000,-500.0,0.00013941,2]
[424990320,1781381431000,-500.0,0.00013941,2]
[424990321,1781381431000,-500.0,0.00013941,2]
[424990310,1781381431000,-500.0,0.00013941,2]
[424990316,1781381431000,-500.0,0.00013941,2]
[424990317,1781381431000,-500.0,0.00013941,2]
[424990314,1781381431000,-500.0,0.00013941,2]
[424990315,1781381431000,-273.68292814,0.00013941,2]
[424990313,1781381431000,-500.0,0.00013941,2]
[424990319,1781381431000,-500.0,0.00013941,2]
[424990335,1781381432000,-500.0,0.00013941,2]
[424990336,1781381432000,-500.0,0.00013941,2]
[424990334,1781381432000,-500.0,0.00013941,2]
[424990330,1781381432000,-500.0,0.00013941,2]
[424990332,1781381432000,-500.0,0.00013941,2]
[424990328,1781381432000,-500.0,0.00013941,2]
[424990331,1781381432000,-500.0,0.00013941,2]
[424990326,1781381432000,-500.0,0.00013941,2]
[424990327,1781381432000,-500.0,0.00013941,2]
[424990337,1781381432000,-200.0,0.00013941,2]
[424990333,1781381432000,-500.0,0.00013941,2]
[424990339,1781381432000,-600.0,0.00013942,2]
[424990329,1781381432000,-500.0,0.00013941,2]
[424990340,1781381432000,-600.0,0.00013942,2]
[424990341,1781381432000,-250.0,0.00014,2]
[424990345,1781381432000,-1580.38,0.00014529,2]
[424990342,1781381432000,-150.0,0.00014341,2]
[424990343,1781381432000,-344.12486517,0.00014458,7]
[424990344,1781381432000,-212.29,0.00014466,2]
[424990346,1781381432000,-152.0,0.00014596,2]
[424990349,1781381432000,-162.79,0.00014872,2]
[424990338,1781381432000,-600.0,0.00013942,2]
[424990347,1781381432000,-340.43,0.00014723,2]
[424990350,1781381432000,-4366.70798441,0.00015,2]
[424990348,1781381432000,-150.0,0.00014726,2]
[424990351,1781381432000,-15457.28681956,0.00015,2]
[424990352,1781381432000,-15278.18485802,0.00015,2]
[424990361,1781381440000,-500.0,0.00014723,2]
[424990362,1781381440000,-604.0,0.00015,2]
[424990399,1781381443000,-200.0,0.00016218,2]
[424990402,1781381443000,-200.0,0.00016218,2]
[424990404,1781381443000,-1580.38,0.00016345,2]
[424990406,1781381443000,-200.0,0.0001638,2]
[424990407,1781381443000,-200.0,0.0001638,2]
[424990405,1781381443000,-200.0,0.0001638,2]
[424990400,1781381443000,-200.0,0.00016218,2]
[424990408,1781381443000,-200.0,0.0001638,2]
[424990409,1781381443000,-618.2,0.00016438,2]
[424990415,1781381443000,-152.0,0.00016438,2]
[424990414,1781381443000,-152.0,0.00016438,2]
[424990411,1781381443000,-152.0,0.00016438,2]
[424990416,1781381443000,-152.0,0.00016438,2]
[424990420,1781381443000,-152.0,0.00016438,2]
[424990412,1781381443000,-152.0,0.00016438,2]
[424990410,1781381443000,-152.87416947,0.00016438,2]
[424990417,1781381443000,-152.0,0.00016438,2]
[424990418,1781381443000,-152.0,0.00016438,2]
[424990423,1781381443000,-297.49462527,0.00016438,2]
[424990421,1781381443000,-152.0,0.00016438,2]
[424990419,1781381443000,-152.0,0.00016438,2]
[424990422,1781381443000,-152.0,0.00016438,2]
[424990424,1781381443000,-1500.0,0.00016492,2]
[424990427,1781381443000,-200.0,0.00016544,2]
[424990426,1781381443000,-200.0,0.00016544,2]
[424990428,1781381443000,-166.66,0.00016684,2]
[424990401,1781381443000,-151.00000001,0.00016218,2]
[424990413,1781381443000,-152.0,0.00016438,2]
[424990403,1781381443000,-166.66,0.0001634,2]
[424990380,1781381443000,-500.0,0.00015753,2]
[424990397,1781381443000,-300.0,0.00016,2]
[424990425,1781381443000,-200.0,0.00016544,2]
[424990371,1781381443000,-216.029201,0.00015033,2]
[424990369,1781381443000,-70472.07377386,0.00015,2]
[424990370,1781381443000,-6947.89,0.00015028,2]
[424990372,1781381443000,-600.0,0.00015232,2]
[424990373,1781381443000,-200.0,0.00015244,2]
[424990374,1781381443000,-300.0,0.00015244,2]
[424990376,1781381443000,-500.0,0.00015616,2]
[424990378,1781381443000,-151.0,0.00015681,2]
[424990377,1781381443000,-152.0,0.00015681,2]
[424990375,1781381443000,-200.0,0.00015454,2]
[424990379,1781381443000,-150.0,0.00015681,2]
[424990383,1781381443000,-18410.6285,0.00015815,2]
[424990398,1781381443000,-200.0,0.00016218,2]
[424990384,1781381443000,-5599.3905,0.00015815,2]
[424990381,1781381443000,-11371.6976704,0.00015814,2]
[424990387,1781381443000,-2482.4548586,0.00015915,2]
[424990390,1781381443000,-2835.6789748,0.00015915,2]
[424990385,1781381443000,-250.0,0.00015815,2]
[424990388,1781381443000,-46741.6479003,0.00015915,2]
[424990389,1781381443000,-98926.3728867,0.00015915,2]
[424990391,1781381443000,-151.0,0.00015915,2]
[424990386,1781381443000,-8479.8961504,0.00015915,2]
[424990392,1781381443000,-151.0,0.00015915,2]
[424990394,1781381443000,-151.0,0.00015915,2]
[424990395,1781381443000,-152.0,0.00015975,2]
[424990393,1781381443000,-151.0,0.00015915,2]
[424990396,1781381443000,-285.61462453,0.00015975,2]
[424990382,1781381443000,-4402.41739111,0.00015815,2]
[424990430,1781381443000,-200.0,0.00016709,2]
[424990491,1781381443000,-151.0,0.00019225,2]
[424990431,1781381443000,-162.78,0.00016804,2]
[424990462,1781381443000,-1789.13,0.00018028,2]
[424990466,1781381443000,-500.0,0.00018029,2]
[424990467,1781381443000,-500.0,0.00018029,2]
[424990461,1781381443000,-500.0,0.00018028,2]
[424990468,1781381443000,-166.66,0.0001806,2]
[424990471,1781381443000,-1580.38,0.00018161,2]
[424990470,1781381443000,-555.14908137,0.0001816,2]
[424990469,1781381443000,-1672.7364795,0.00018136,2]
[424990472,1781381443000,-500.0,0.00018218,2]
[424990473,1781381443000,-500.0,0.00018218,2]
[424990477,1781381443000,-1734.62772924,0.00018684,2]
[424990476,1781381443000,-618.2,0.0001841,2]
[424990474,1781381443000,-500.0,0.00018218,2]
[424990478,1781381443000,-4402.41739111,0.00018975,2]
[424990481,1781381443000,-291.48904,0.00019178,2]
[424990479,1781381443000,-235.78746115,0.00019085,2]
[424990475,1781381443000,-980.587,0.00018218,2]
[424990480,1781381443000,-151.0,0.00019178,2]
[424990484,1781381443000,-151.0,0.00019186,2]
[424990482,1781381443000,-151.0,0.00019186,2]
[424990483,1781381443000,-151.0,0.00019186,2]
[424990485,1781381443000,-151.0,0.00019186,2]
[424990429,1781381443000,-200.0,0.00016709,2]
[424990487,1781381443000,-151.0,0.00019225,2]
[424990488,1781381443000,-151.0,0.00019225,2]
[424990486,1781381443000,-280.83,0.00019215,2]
[424990489,1781381443000,-151.0,0.00019225,2]
[424990464,1781381443000,-636.52278891,0.00018028,2]
[424990463,1781381443000,-500.0,0.00018028,2]
[424990490,1781381443000,-151.0,0.00019225,2]
[424990465,1781381443000,-500.0,0.00018029,2]
[424990460,1781381443000,-500.0,0.00018028,2]
[424990432,1781381443000,-150.0,0.00016815,2]
[424990434,1781381443000,-150.0,0.00016815,2]
[424990436,1781381443000,-150.0,0.00016815,2]
[424990437,1781381443000,-200.98636165,0.00016815,2]
[424990440,1781381443000,-166.66,0.00017028,2]
[424990441,1781381443000,-1555.5,0.0001704,2]
[424990442,1781381443000,-166.38,0.00017103,2]
[424990443,1781381443000,-280.83,0.00017293,2]
[424990438,1781381443000,-493.7976066,0.00016876,2]
[424990435,1781381443000,-150.0,0.00016815,2]
[424990439,1781381443000,-200.0,0.00016877,2]
[424990445,1781381443000,-4402.41739111,0.00017395,2]
[424990446,1781381443000,-1613.0535,0.00017588,2]
[424990433,1781381443000,-150.0,0.00016815,2]
[424990444,1781381443000,-166.66,0.00017372,2]
[424990447,1781381443000,-166.66,0.00017716,2]
[424990459,1781381443000,-500.0,0.00018028,2]
[424990457,1781381443000,-504.54048414,0.00018028,2]
[424990456,1781381443000,-151.0,0.00018027,2]
[424990451,1781381443000,-155.450133,0.00017999,2]
[424990449,1781381443000,-175.17662021,0.00017933,2]
[424990458,1781381443000,-500.55332276,0.00018028,2]
[424990455,1781381443000,-151.0,0.00018027,2]
[424990452,1781381443000,-350.0,0.00018,2]
[424990453,1781381443000,-150.0,0.00018,2]
[424990454,1781381443000,-150.0,0.00018,2]
[424990450,1781381443000,-239.435051,0.00017933,2]
[424990448,1781381443000,-268.16064061,0.00017933,2]
[424990527,1781381444000,-906.0,0.0002,2]
[424990525,1781381444000,-224.758743,0.0002,2]
[424990526,1781381444000,-400.0,0.0002,2]
[424990524,1781381444000,-1580.38,0.00019977,2]
[424990521,1781381444000,-1464.0,0.00019452,2]
[424990522,1781381444000,-300.0,0.00019505,9]
[424990523,1781381444000,-1865.36488656,0.0001978,2]
[424990519,1781381444000,-1798.80895522,0.00019232,2]
[424990518,1781381444000,-218.778356,0.00019225,2]
[424990520,1781381444000,-200.0,0.00019423,9]
[424990529,1781381444000,-190.42724844,0.0002,2]
[424990533,1781381444000,-190.42724844,0.0002,2]
[424990528,1781381444000,-1018.0,0.0002,2]
[424990531,1781381444000,-190.42724844,0.0002,2]
[424990534,1781381444000,-178.0,0.0002,2]
[424990532,1781381444000,-190.42724844,0.0002,2]
[424990535,1781381444000,-368.0,0.0002,2]
[424990536,1781381444000,-151.0,0.0002,2]
[424990538,1781381444000,-500.0,0.0002,2]
[424990537,1781381444000,-202.0,0.0002,2]
[424990539,1781381444000,-639.14495753,0.0002,2]
[424990517,1781381444000,-151.0,0.00019225,2]
[424990530,1781381444000,-190.42724844,0.0002,2]
[424990515,1781381444000,-151.0,0.00019225,2]
[424990496,1781381444000,-151.0,0.00019225,2]
[424990516,1781381444000,-151.0,0.00019225,2]
[424990544,1781381444000,-235.0,0.0002,2]
[424990492,1781381444000,-151.0,0.00019225,2]
[424990493,1781381444000,-151.0,0.00019225,2]
[424990495,1781381444000,-151.0,0.00019225,2]
[424990494,1781381444000,-151.0,0.00019225,2]
[424990497,1781381444000,-151.0,0.00019225,2]
[424990503,1781381444000,-151.0,0.00019225,2]
[424990499,1781381444000,-151.0,0.00019225,2]
[424990498,1781381444000,-151.0,0.00019225,2]
[424990501,1781381444000,-151.0,0.00019225,2]
[424990514,1781381444000,-379.322988,0.00019225,2]
[424990502,1781381444000,-151.0,0.00019225,2]
[424990505,1781381444000,-151.0,0.00019225,2]
[424990506,1781381444000,-151.0,0.00019225,2]
[424990504,1781381444000,-151.0,0.00019225,2]
[424990508,1781381444000,-151.0,0.00019225,2]
[424990507,1781381444000,-151.0,0.00019225,2]
[424990509,1781381444000,-273.641047,0.00019225,2]
[424990510,1781381444000,-151.0,0.00019225,2]
[424990511,1781381444000,-379.322988,0.00019225,2]
[424990512,1781381444000,-379.322988,0.00019225,2]
[424990513,1781381444000,-379.322988,0.00019225,2]
[424990500,1781381444000,-151.0,0.00019225,2]
[424990540,1781381444000,-696.0,0.0002,2]
[424990585,1781381444000,-500.0,0.00021424,2]
[424990541,1781381444000,-156.0,0.0002,2]
[424990571,1781381444000,-166.38,0.00021378,2]
[424990573,1781381444000,-151.0,0.00021424,2]
[424990568,1781381444000,-150.0,0.00021,2]
[424990575,1781381444000,-151.0,0.00021424,2]
[424990574,1781381444000,-151.0,0.00021424,2]
[424990572,1781381444000,-200.0,0.00021424,2]
[424990576,1781381444000,-151.0,0.00021424,2]
[424990577,1781381444000,-151.0,0.00021424,2]
[424990578,1781381444000,-151.0,0.00021424,2]
[424990581,1781381444000,-2080.17592889,0.00021424,2]
[424990570,1781381444000,-280.83,0.00021136,2]
[424990579,1781381444000,-151.0,0.00021424,2]
[424990580,1781381444000,-151.0,0.00021424,2]
[424990583,1781381444000,-500.0,0.00021424,2]
[424990586,1781381444000,-151.0,0.00021424,2]
[424990590,1781381444000,-500.0,0.00021424,2]
[424990587,1781381444000,-151.0,0.00021424,2]
[424990589,1781381444000,-151.0,0.00021424,2]
[424990591,1781381444000,-151.0,0.00021424,2]
[424990588,1781381444000,-500.0,0.00021424,2]
[424990592,1781381444000,-151.0,0.00021424,2]
[424990542,1781381444000,-264.0,0.0002,2]
[424990584,1781381444000,-151.0,0.00021424,2]
[424990569,1781381444000,-235.0,0.00021,2]
[424990582,1781381444000,-151.0,0.00021424,2]
[424990567,1781381444000,-156.0,0.00021,2]
[424990566,1781381444000,-264.0,0.00021,2]
[424990543,1781381444000,-156.0,0.0002,2]
[424990545,1781381444000,-151.0,0.0002,2]
[424990546,1781381444000,-151.0,0.0002,2]
[424990549,1781381444000,-1464.0,0.00020136,2]
[424990551,1781381444000,-1934.38338736,0.00020328,2]
[424990550,1781381444000,-8169.05,0.0002028,2]
[424990548,1781381444000,-160.691392,0.0002,2]
[424990552,1781381444000,-500.0,0.0002038,2]
[424990553,1781381444000,-500.0,0.0002038,2]
[424990554,1781381444000,-618.2,0.00020381,2]
[424990547,1781381444000,-151.0,0.0002,2]
[424990565,1781381444000,-156.0,0.00021,2]
[424990556,1781381444000,-732.342579,0.00020821,2]
[424990557,1781381444000,-2005.9555727,0.00020876,2]
[424990558,1781381444000,-906.0,0.00021,2]
[424990562,1781381444000,-151.0,0.00021,2]
[424990560,1781381444000,-178.0,0.00021,2]
[424990563,1781381444000,-202.0,0.00021,2]
[424990564,1781381444000,-696.0,0.00021,2]
[424990559,1781381444000,-1018.0,0.00021,2]
[424990561,1781381444000,-368.0,0.00021,2]
[424990555,1781381444000,-4402.41739111,0.00020555,2]
[424990630,1781381445000,-150.0,0.00021918,2]
[424990629,1781381445000,-5000.0,0.00021918,2]
[424990626,1781381445000,-151.0,0.000219,2]
[424990628,1781381445000,-151.0,0.000219,2]
[424990625,1781381445000,-379.322988,0.000219,2]
[424990621,1781381445000,-151.0,0.000219,2]
[424990623,1781381445000,-379.322988,0.000219,2]
[424990624,1781381445000,-379.322988,0.000219,2]
[424990622,1781381445000,-379.322988,0.000219,2]
[424990631,1781381445000,-150.0,0.00021918,2]
[424990627,1781381445000,-151.0,0.000219,2]
[424990632,1781381445000,-151.0,0.00021918,2]
[424990645,1781381445000,-450.0,0.00022,2]
[424990635,1781381445000,-151.0,0.00021918,2]
[424990634,1781381445000,-151.0,0.00021918,2]
[424990636,1781381445000,-151.0,0.00021918,2]
[424990638,1781381445000,-151.0,0.00021918,2]
[424990640,1781381445000,-2157.14243826,0.00021972,2]
[424990639,1781381445000,-200.0,0.00021972,2]
[424990637,1781381445000,-151.0,0.00021918,2]
[424990641,1781381445000,-206.0,0.00021976,2]
[424990642,1781381445000,-500.0,0.00021999,2]
[424990643,1781381445000,-121083.0,0.00022,2]
[424990620,1781381445000,-151.0,0.000219,2]
[424990633,1781381445000,-151.0,0.00021918,2]
[424990618,1781381445000,-5408.0,0.000219,7]
[424990593,1781381445000,-500.0,0.00021424,2]
[424990613,1781381445000,-175.5175,0.00021666,2]
[424990594,1781381445000,-151.0,0.00021424,2]
[424990651,1781381445000,-151.0,0.00022,2]
[424990595,1781381445000,-151.0,0.00021424,2]
[424990596,1781381445000,-500.0,0.00021424,2]
[424990597,1781381445000,-151.0,0.00021424,2]
[424990598,1781381445000,-151.0,0.00021424,2]
[424990606,1781381445000,-500.0,0.00021424,2]
[424990603,1781381445000,-151.0,0.00021424,2]
[424990600,1781381445000,-151.0,0.00021424,2]
[424990602,1781381445000,-500.0,0.00021424,2]
[424990605,1781381445000,-151.0,0.00021424,2]
[424990614,1781381445000,-175.5175,0.00021667,2]
[424990604,1781381445000,-500.0,0.00021424,2]
[424990599,1781381445000,-500.0,0.00021424,2]
[424990607,1781381445000,-151.0,0.00021424,2]
[424990608,1781381445000,-500.0,0.00021424,2]
[424990609,1781381445000,-151.0,0.00021424,2]
[424990610,1781381445000,-151.0,0.00021424,2]
[424990615,1781381445000,-175.517476,0.00021668,2]
[424990619,1781381445000,-4715.63862735,0.000219,2]
[424990612,1781381445000,-151.0,0.00021428,2]
[424990611,1781381445000,-151.0,0.00021424,2]
[424990616,1781381445000,-1580.38,0.00021793,2]
[424990617,1781381445000,-151.0,0.000219,2]
[424990601,1781381445000,-179.36962349,0.00021424,2]
[424990646,1781381445000,-906.0,0.00022,2]
[424990647,1781381445000,-1018.0,0.00022,2]
[424990644,1781381445000,-151.0,0.00022,2]
[424990681,1781381445000,-630.62372843,0.00022407,2]
[424990679,1781381445000,-1556.43296803,0.00022407,2]
[424990686,1781381445000,-656.75584895,0.00022658,7]
[424990687,1781381445000,-982.46747204,0.00022658,7]
[424990680,1781381445000,-630.62372844,0.00022407,2]
[424990678,1781381445000,-1556.43296806,0.00022407,2]
[424990685,1781381445000,-379.96796044,0.0002252,2]
[424990688,1781381445000,-1329.3126,0.00022658,7]
[424990689,1781381445000,-4715.6386273,0.00022804,2]
[424990691,1781381445000,-1406.0,0.00022873,7]
[424990694,1781381445000,-500.0,0.00022999,2]
[424990683,1781381445000,-200.0,0.0002252,2]
[424990692,1781381445000,-569.0,0.00022881,2]
[424990693,1781381445000,-500.0,0.00022999,2]
[424990690,1781381445000,-198.19031998,0.00022826,2]
[424990696,1781381445000,-500.0,0.00022999,2]
[424990695,1781381445000,-1789.13,0.00022999,2]
[424990698,1781381445000,-160.1715991,0.00023,2]
[424990700,1781381445000,-1018.0,0.00023,2]
[424990652,1781381445000,-202.0,0.00022,2]
[424990701,1781381445000,-178.0,0.00023,2]
[424990702,1781381445000,-368.0,0.00023,2]
[424990703,1781381445000,-151.0,0.00023,2]
[424990704,1781381445000,-202.0,0.00023,2]
[424990697,1781381445000,-1017.51131727,0.00023,2]
[424990682,1781381445000,-630.62372843,0.00022407,2]
[424990699,1781381445000,-906.0,0.00023,2]
[424990676,1781381445000,-372.28555586,0.00022158,7]
[424990677,1781381445000,-618.2,0.00022353,2]
[424990648,1781381445000,-178.0,0.00022,2]
[424990650,1781381445000,-368.0,0.00022,2]
[424990654,1781381445000,-264.0,0.00022,2]
[424990653,1781381445000,-696.0,0.00022,2]
[424990656,1781381445000,-151.0,0.00022,2]
[424990655,1781381445000,-151.0,0.00022,2]
[424990657,1781381445000,-151.0,0.00022,2]
[424990663,1781381445000,-379.322988,0.00022,2]
[424990659,1781381445000,-155.015342,0.00022,2]
[424990662,1781381445000,-379.322988,0.00022,2]
[424990658,1781381445000,-151.0,0.00022,2]
[424990649,1781381445000,-151.0,0.00022,2]
[424990661,1781381445000,-379.322988,0.00022,2]
[424990660,1781381445000,-379.322988,0.00022,2]
[424990672,1781381445000,-151.0,0.00022,2]
[424990670,1781381445000,-303.38,0.00022,2]
[424990671,1781381445000,-235.0,0.00022,2]
[424990674,1781381445000,-151.0,0.00022,2]
[424990675,1781381445000,-4402.41739111,0.00022135,2]
[424990666,1781381445000,-151.0,0.00022,2]
[424990664,1781381445000,-151.0,0.00022,2]
[424990665,1781381445000,-151.0,0.00022,2]
[424990668,1781381445000,-156.0,0.00022,2]
[424990673,1781381445000,-151.0,0.00022,2]
[424990727,1781381446000,-696.0,0.00024,2]
[424990739,1781381446000,-379.322988,0.0002429,2]
[424990730,1781381446000,-235.0,0.00024,2]
[424990731,1781381446000,-150.0,0.00024164,2]
[424990732,1781381446000,-500.0,0.00024222,2]
[424990735,1781381446000,-151.0,0.0002429,2]
[424990733,1781381446000,-569.0,0.00024251,2]
[424990734,1781381446000,-10816.50812752,0.0002429,7]
[424990736,1781381446000,-151.0,0.0002429,2]
[424990742,1781381446000,-379.322988,0.0002429,2]
[424990737,1781381446000,-151.0,0.0002429,2]
[424990740,1781381446000,-379.322988,0.0002429,2]
[424990741,1781381446000,-379.322988,0.0002429,2]
[424990754,1781381446000,-151.0,0.00024658,2]
[424990744,1781381446000,-151.0,0.0002429,2]
[424990747,1781381446000,-151.0,0.0002429,2]
[424990745,1781381446000,-151.0,0.0002429,2]
[424990743,1781381446000,-151.0,0.0002429,2]
[424990726,1781381446000,-202.0,0.00024,2]
[424990738,1781381446000,-265.383728,0.0002429,2]
[424990728,1781381446000,-264.0,0.00024,2]
[424990717,1781381446000,-601.0,0.00023881,2]
[424990725,1781381446000,-162.0,0.00024,2]
[424990750,1781381446000,-152.0,0.00024594,3]
[424990708,1781381446000,-235.0,0.00023,2]
[424990705,1781381446000,-696.0,0.00023,2]
[424990706,1781381446000,-264.0,0.00023,2]
[424990707,1781381446000,-156.0,0.00023,2]
[424990709,1781381446000,-150.0,0.00023014,2]
[424990716,1781381446000,-2000.0,0.00023881,2]
[424990712,1781381446000,-150.0,0.00023288,2]